[Event "*** Titled Tuesday Blitz"]
[Site "Chess.com"]
[Date "2019.09.03"]
[Round "3"]
[White "olksuna"]
[Black "2165149677570"]
[Result "1-0"]
[WhiteElo "2564"]
[BlackElo "2313"]
[TimeControl "180+2"]
[EndTime "15:36:27 PDT"]
[Termination "olksuna won by resignation"]

1. e4 {[%clk 0:03:01.1]} 1... c5 {[%clk 0:03:00.5]} 2. Nf3 {[%clk 0:03:01.6]}
2... Nc6 {[%clk 0:02:56.6]} 3. d4 {[%clk 0:03:01.9]} 3... cxd4 {[%clk
0:02:58.5]} 4. Nxd4 {[%clk 0:03:03.3]} 4... Nf6 {[%clk 0:02:57.1]} 5. Nc3 {[%clk
0:03:04.3]} 5... e6 {[%clk 0:02:58.3]} 6. Ndb5 {[%clk 0:03:04.5]} 6... d6 {[%clk
0:02:58.9]} 7. Bf4 {[%clk 0:03:05.2]} 7... e5 {[%clk 0:03:00.5]} 8. Bg5 {[%clk
0:03:06.4]} 8... a6 {[%clk 0:03:02]} 9. Na3 {[%clk 0:03:07.4]} 9... b5 {[%clk
0:03:03.5]} 10. Nd5 {[%clk 0:03:08.1]} 10... Be7 {[%clk 0:03:04.7]} 11. Bxf6
{[%clk 0:03:09.2]} 11... Bxf6 {[%clk 0:03:06.6]} 12. c4 {[%clk 0:03:10.4]} 12...
b4 {[%clk 0:03:07.4]} 13. Nc2 {[%clk 0:03:11.5]} 13... O-O {[%clk 0:03:09.2]}
14. h4 {[%clk 0:03:08.5]} 14... a5 {[%clk 0:02:39.4]} 15. g3 {[%clk 0:03:03.3]}
15... Be6 {[%clk 0:02:38.2]} 16. Bg2 {[%clk 0:03:02.5]} 16... Rc8 {[%clk
0:02:34.8]} 17. O-O {[%clk 0:03:01.1]} 17... g6 {[%clk 0:02:07.8]} 18. b3 {[%clk
0:02:45.6]} 18... Bg7 {[%clk 0:02:08.2]} 19. a3 {[%clk 0:02:46.9]} 19... Nd4
{[%clk 0:01:49.1]} 20. Nxd4 {[%clk 0:02:37.9]} 20... exd4 {[%clk 0:01:50.2]} 21.
axb4 {[%clk 0:02:39.7]} 21... Bxd5 {[%clk 0:01:33.6]} 22. exd5 {[%clk
0:02:39.1]} 22... axb4 {[%clk 0:01:34.9]} 23. Ra6 {[%clk 0:02:23.6]} 23... Ra8
{[%clk 0:01:28.4]} 24. Rc6 {[%clk 0:02:18.9]} 24... Ra3 {[%clk 0:01:18.4]} 25.
Re1 {[%clk 0:02:13.8]} 25... Qf6 {[%clk 0:01:02.8]} 26. c5 {[%clk 0:02:07.3]}
26... Rd8 {[%clk 0:00:55.2]} 27. cxd6 {[%clk 0:02:07.2]} 27... Ra2 {[%clk
0:00:45]} 28. Re2 {[%clk 0:02:07.5]} 28... Rxe2 {[%clk 0:00:41.9]} 29. Qxe2
{[%clk 0:02:09.4]} 29... Rxd6 {[%clk 0:00:37.7]} 30. Qe8+ {[%clk 0:02:05.6]}
30... Bf8 {[%clk 0:00:38.9]} 31. Rc8 {[%clk 0:02:06.7]} 31... Qg7 {[%clk
0:00:35.2]} 32. Rc6 {[%clk 0:01:58.9]} 32... Qf6 {[%clk 0:00:18.5]} 33. Rc8
{[%clk 0:01:59.3]} 33... Qg7 {[%clk 0:00:19.5]} 34. Qe7 {[%clk 0:02:00.7]} 34...
Ra6 {[%clk 0:00:12.9]} 35. d6 {[%clk 0:02:00.7]} 35... d3 {[%clk 0:00:05.4]} 36.
d7 {[%clk 0:01:59.3]} 36... d2 {[%clk 0:00:06.7]} 37. Rxf8+ {[%clk 0:01:57.6]}
37... Qxf8 {[%clk 0:00:07.6]} 38. Qxf8+ {[%clk 0:01:59.5]} 38... Kxf8 {[%clk
0:00:08.4]} 39. d8=Q+ {[%clk 0:02:01.4]} 1-0

[Event "*** Titled Tuesday Blitz"]
[Site "Chess.com"]
[Date "2019.09.03"]
[Round "3"]
[White "juniortay"]
[Black "Arystanner"]
[Result "1-0"]
[WhiteElo "2468"]
[BlackElo "2676"]
[TimeControl "180+2"]
[EndTime "15:36:34 PDT"]
[Termination "juniortay won by resignation"]

1. e4 {[%clk 0:03:01.9]} 1... e6 {[%clk 0:03:00.5]} 2. Nf3 {[%clk 0:03:02.3]}
2... d5 {[%clk 0:03:02]} 3. Nc3 {[%clk 0:03:04.1]} 3... dxe4 {[%clk 0:03:03.3]}
4. Nxe4 {[%clk 0:03:04.7]} 4... Nd7 {[%clk 0:03:05.1]} 5. d4 {[%clk 0:03:05.8]}
5... Ngf6 {[%clk 0:03:06.5]} 6. Bd3 {[%clk 0:03:05.1]} 6... c5 {[%clk
0:03:07.2]} 7. Qe2 {[%clk 0:03:04.3]} 7... cxd4 {[%clk 0:03:04.3]} 8. Bg5 {[%clk
0:03:04.3]} 8... Be7 {[%clk 0:03:04.9]} 9. O-O-O {[%clk 0:03:04.4]} 9... Nxe4
{[%clk 0:03:01.7]} 10. Bxe7 {[%clk 0:03:04.6]} 10... Qxe7 {[%clk 0:03:00.4]} 11.
Qxe4 {[%clk 0:03:02.5]} 11... Nc5 {[%clk 0:02:57.8]} 12. Qxd4 {[%clk 0:03:02.2]}
12... Nxd3+ {[%clk 0:02:59.2]} 13. Rxd3 {[%clk 0:03:00.3]} 13... O-O {[%clk
0:02:53.6]} 14. Rhd1 {[%clk 0:02:59.6]} 14... f6 {[%clk 0:02:41.7]} 15. Qd6
{[%clk 0:02:57.9]} 15... Qxd6 {[%clk 0:02:41.8]} 16. Rxd6 {[%clk 0:02:57.8]}
16... e5 {[%clk 0:02:43.2]} 17. c4 {[%clk 0:02:50]} 17... Bg4 {[%clk 0:02:42.3]}
18. b3 {[%clk 0:02:45.1]} 18... b6 {[%clk 0:02:12.8]} 19. Kb2 {[%clk 0:02:42.3]}
19... Rae8 {[%clk 0:02:05.9]} 20. h3 {[%clk 0:02:42.3]} 20... Bxf3 {[%clk
0:01:48.6]} 21. gxf3 {[%clk 0:02:44.2]} 21... e4 {[%clk 0:01:50]} 22. fxe4
{[%clk 0:02:15.7]} 22... Rxe4 {[%clk 0:01:51.9]} 23. R1d2 {[%clk 0:02:04.3]}
23... h5 {[%clk 0:01:39.7]} 24. Rd7 {[%clk 0:02:02.3]} 24... Rf7 {[%clk
0:01:37.3]} 25. Rxf7 {[%clk 0:01:42.7]} 25... Kxf7 {[%clk 0:01:39.2]} 26. Rd7+
{[%clk 0:01:43.9]} 26... Re7 {[%clk 0:01:40]} 27. Rxe7+ {[%clk 0:01:40.5]} 27...
Kxe7 {[%clk 0:01:41.9]} 28. Kc3 {[%clk 0:01:39.3]} 28... g5 {[%clk 0:01:40.4]}
29. Kd4 {[%clk 0:01:38.4]} 29... Kd6 {[%clk 0:01:41.8]} 30. b4 {[%clk
0:01:38.5]} 30... Kc6 {[%clk 0:01:39.6]} 31. Ke4 {[%clk 0:01:36.4]} 31... Kd6
{[%clk 0:01:27.1]} 32. Kf5 {[%clk 0:01:35.5]} 32... Kd7 {[%clk 0:01:28.2]} 33.
Kxf6 {[%clk 0:01:33.3]} 33... g4 {[%clk 0:01:24.5]} 34. h4 {[%clk 0:01:30.9]}
34... Kd6 {[%clk 0:01:25.8]} 35. Kf5 {[%clk 0:01:17.6]} 35... a5 {[%clk
0:01:25.3]} 36. a3 {[%clk 0:01:16.7]} 36... a4 {[%clk 0:01:26.1]} 37. Ke4 {[%clk
0:01:09.5]} 37... Ke6 {[%clk 0:01:24.7]} 38. c5 {[%clk 0:01:05.2]} 38... bxc5
{[%clk 0:01:21.8]} 39. bxc5 {[%clk 0:01:07.1]} 39... Kf6 {[%clk 0:01:20.2]} 40.
Kd5 {[%clk 0:01:04.8]} 1-0

[Event "*** Titled Tuesday Blitz"]
[Site "Chess.com"]
[Date "2019.09.03"]
[Round "3"]
[White "albano87"]
[Black "TheFireChess"]
[Result "1-0"]
[WhiteElo "2062"]
[BlackElo "2503"]
[TimeControl "180+2"]
[EndTime "15:36:38 PDT"]
[Termination "albano87 won by resignation"]

1. d4 {[%clk 0:03:01.8]} 1... f5 {[%clk 0:02:59.3]} 2. Qd3 {[%clk 0:02:58.1]}
2... d5 {[%clk 0:02:59.5]} 3. g4 {[%clk 0:02:58.7]} 3... e6 {[%clk 0:02:59.3]}
4. Nf3 {[%clk 0:02:58.5]} 4... Nf6 {[%clk 0:02:58.1]} 5. Ne5 {[%clk 0:02:53.7]}
5... Bd6 {[%clk 0:02:56.9]} 6. gxf5 {[%clk 0:02:47.5]} 6... exf5 {[%clk
0:02:57]} 7. Bf4 {[%clk 0:02:46.7]} 7... O-O {[%clk 0:02:56.8]} 8. Nc3 {[%clk
0:02:47.2]} 8... c6 {[%clk 0:02:54.1]} 9. O-O-O {[%clk 0:02:46.2]} 9... Ne4
{[%clk 0:02:54.6]} 10. Nxe4 {[%clk 0:02:46.6]} 10... fxe4 {[%clk 0:02:56.5]} 11.
Qg3 {[%clk 0:02:47.9]} 11... Qf6 {[%clk 0:02:26.8]} 12. e3 {[%clk 0:02:47.1]}
12... Bf5 {[%clk 0:02:09.4]} 13. Rg1 {[%clk 0:02:46.9]} 13... Na6 {[%clk
0:01:35.2]} 14. Nd7 {[%clk 0:02:45.3]} 14... Bxd7 {[%clk 0:01:32.4]} 15. Bxd6
{[%clk 0:02:46.9]} 15... Rf7 {[%clk 0:01:33.4]} 16. Be5 {[%clk 0:02:47.1]} 16...
Qe7 {[%clk 0:01:33.9]} 17. Be2 {[%clk 0:02:43.4]} 17... Bf5 {[%clk 0:01:22.4]}
18. h4 {[%clk 0:02:31.4]} 18... Nc7 {[%clk 0:01:18.8]} 19. Rg2 {[%clk
0:02:25.8]} 19... Ne6 {[%clk 0:01:19.1]} 20. Rdg1 {[%clk 0:02:26.7]} 20... Rc8
{[%clk 0:01:09]} 21. Bh5 {[%clk 0:02:25.7]} 21... g6 {[%clk 0:01:07.3]} 22. Be2
{[%clk 0:02:09.1]} 22... c5 {[%clk 0:01:07.6]} 23. c3 {[%clk 0:02:01.5]} 23...
cxd4 {[%clk 0:01:07.7]} 24. exd4 {[%clk 0:02:02.6]} 24... a6 {[%clk 0:01:00.7]}
25. h5 {[%clk 0:02:03.7]} 25... Rc6 {[%clk 0:00:50.2]} 26. hxg6 {[%clk
0:02:03.9]} 26... Bxg6 {[%clk 0:00:48.1]} 27. Rh2 {[%clk 0:01:55.4]} 27... Nf8
{[%clk 0:00:46.3]} 28. Rh6 {[%clk 0:01:53]} 28... b5 {[%clk 0:00:22.4]} 29. a3
{[%clk 0:01:54.2]} 29... b4 {[%clk 0:00:18.6]} 30. axb4 {[%clk 0:01:54.8]} 30...
Qxb4 {[%clk 0:00:19.5]} 31. Bh5 {[%clk 0:01:48.8]} 31... Qb3 {[%clk 0:00:18.1]}
32. Bxg6 {[%clk 0:01:47.1]} 32... Rxg6 {[%clk 0:00:20]} 33. Rxg6+ {[%clk
0:01:44.1]} 33... Nxg6 {[%clk 0:00:21.9]} 34. Qh3 {[%clk 0:01:41.1]} 34... Qb7
{[%clk 0:00:21.5]} 35. Rxg6+ {[%clk 0:01:40.5]} 1-0

[Event "*** Titled Tuesday Blitz"]
[Site "Chess.com"]
[Date "2019.09.03"]
[Round "3"]
[White "babero_gordo"]
[Black "Valuebet2000"]
[Result "0-1"]
[WhiteElo "2184"]
[BlackElo "2472"]
[TimeControl "180+2"]
[EndTime "15:36:45 PDT"]
[Termination "Valuebet2000 won by resignation"]

1. e4 {[%clk 0:03:01.9]} 1... c6 {[%clk 0:03:00.7]} 2. d4 {[%clk 0:02:51.5]}
2... d5 {[%clk 0:03:02.6]} 3. e5 {[%clk 0:02:53]} 3... Bf5 {[%clk 0:03:02.7]} 4.
h4 {[%clk 0:02:51.5]} 4... h5 {[%clk 0:03:03.2]} 5. Bd3 {[%clk 0:02:51.2]} 5...
Bxd3 {[%clk 0:03:02.8]} 6. Qxd3 {[%clk 0:02:53.1]} 6... e6 {[%clk 0:03:04.6]} 7.
Nf3 {[%clk 0:02:49.2]} 7... Nh6 {[%clk 0:03:04]} 8. Bg5 {[%clk 0:02:23.7]} 8...
Be7 {[%clk 0:03:00.5]} 9. Nbd2 {[%clk 0:02:24.2]} 9... Nf5 {[%clk 0:03:01]} 10.
c4 {[%clk 0:02:18.5]} 10... Na6 {[%clk 0:02:26]} 11. a3 {[%clk 0:02:09.6]} 11...
Nc7 {[%clk 0:02:25.5]} 12. Rd1 {[%clk 0:01:42.5]} 12... dxc4 {[%clk 0:02:23.2]}
13. Nxc4 {[%clk 0:01:41]} 13... Nd5 {[%clk 0:02:23.5]} 14. Bxe7 {[%clk
0:01:31.6]} 14... Qxe7 {[%clk 0:02:23.1]} 15. Ng5 {[%clk 0:01:19]} 15... Rd8
{[%clk 0:02:13.3]} 16. Ne4 {[%clk 0:01:16.9]} 16... O-O {[%clk 0:02:08.9]} 17.
Ncd6 {[%clk 0:01:04.6]} 17... Nxd6 {[%clk 0:01:54.1]} 18. exd6 {[%clk
0:00:53.6]} 18... Qd7 {[%clk 0:01:47.4]} 19. Ng5 {[%clk 0:00:50.3]} 19... f5
{[%clk 0:01:47.9]} 20. Qe2 {[%clk 0:00:48.9]} 20... Rde8 {[%clk 0:01:47.6]} 21.
Qxh5 {[%clk 0:00:48.5]} 21... Nf6 {[%clk 0:01:47.8]} 22. Qg6 {[%clk 0:00:46.1]}
22... Qxd6 {[%clk 0:01:39.3]} 23. h5 {[%clk 0:00:43.4]} 23... e5 {[%clk
0:01:16.5]} 24. h6 {[%clk 0:00:29.6]} 24... exd4+ {[%clk 0:01:17.3]} 25. Kf1
{[%clk 0:00:31.2]} 25... Re7 {[%clk 0:01:18.8]} 26. Rd3 {[%clk 0:00:20.1]} 26...
Qe5 {[%clk 0:01:15]} 27. Nf3 {[%clk 0:00:17.9]} 27... Qe2+ {[%clk 0:01:15.2]}
28. Kg1 {[%clk 0:00:18.2]} 28... Qxd3 {[%clk 0:01:16.4]} 29. hxg7 {[%clk
0:00:18.4]} 29... Rxg7 {[%clk 0:01:17.2]} 30. Rh8+ {[%clk 0:00:17]} 30... Kxh8
{[%clk 0:01:18.1]} 31. Qh6+ {[%clk 0:00:18.9]} 31... Kg8 {[%clk 0:01:19.4]} 32.
Ne5 {[%clk 0:00:18.4]} 32... Qd1+ {[%clk 0:01:20.5]} 33. Kh2 {[%clk 0:00:19.4]}
33... Qh5+ {[%clk 0:01:21.1]} 34. Qxh5 {[%clk 0:00:20]} 34... Nxh5 {[%clk
0:01:23]} 35. Nf3 {[%clk 0:00:21]} 35... d3 {[%clk 0:01:23.2]} 0-1

[Event "*** Titled Tuesday Blitz"]
[Site "Chess.com"]
[Date "2019.09.03"]
[Round "3"]
[White "jefferyx"]
[Black "Morscas"]
[Result "1-0"]
[WhiteElo "2948"]
[BlackElo "2256"]
[TimeControl "180+2"]
[EndTime "15:36:53 PDT"]
[Termination "jefferyx won by resignation"]

1. d4 {[%clk 0:03:01.9]} 1... g6 {[%clk 0:02:57.7]} 2. e4 {[%clk 0:03:02.7]}
2... Bg7 {[%clk 0:02:57.5]} 3. Nf3 {[%clk 0:03:04.4]} 3... d6 {[%clk 0:02:58.4]}
4. Bd3 {[%clk 0:03:06]} 4... Nf6 {[%clk 0:02:59.1]} 5. O-O {[%clk 0:03:07.4]}
5... O-O {[%clk 0:02:59.8]} 6. Re1 {[%clk 0:03:07.4]} 6... Nc6 {[%clk 0:02:56]}
7. c3 {[%clk 0:03:08.4]} 7... e5 {[%clk 0:02:56]} 8. h3 {[%clk 0:03:05.6]} 8...
h6 {[%clk 0:02:56.6]} 9. Na3 {[%clk 0:03:06.3]} 9... Bd7 {[%clk 0:02:55.1]} 10.
Nc2 {[%clk 0:03:07.3]} 10... Qe7 {[%clk 0:02:53.9]} 11. b4 {[%clk 0:03:06.2]}
11... Nh5 {[%clk 0:02:48.4]} 12. b5 {[%clk 0:02:51.2]} 12... Nd8 {[%clk
0:02:47.7]} 13. dxe5 {[%clk 0:02:51.6]} 13... dxe5 {[%clk 0:02:48]} 14. Ba3
{[%clk 0:02:52.7]} 14... Qf6 {[%clk 0:02:44.2]} 15. Ne3 {[%clk 0:02:52]} 15...
Nf4 {[%clk 0:02:37.9]} 16. Bc4 {[%clk 0:02:52.7]} 16... Be6 {[%clk 0:02:35.3]}
17. Bxf8 {[%clk 0:02:53.6]} 17... Bxf8 {[%clk 0:02:35.3]} 18. Bxe6 {[%clk
0:02:54.7]} 18... Ndxe6 {[%clk 0:02:35.7]} 19. Ng4 {[%clk 0:02:56.2]} 19... Qg7
{[%clk 0:02:35.1]} 20. Ngxe5 {[%clk 0:02:52.3]} 20... Bd6 {[%clk 0:02:36.1]} 21.
Nc4 {[%clk 0:02:52.1]} 21... Bc5 {[%clk 0:02:33.9]} 22. e5 {[%clk 0:02:51.8]}
22... g5 {[%clk 0:02:32.9]} 23. Nfd2 {[%clk 0:02:46.7]} 23... Rd8 {[%clk
0:02:31.1]} 24. Qg4 {[%clk 0:02:47.7]} 24... h5 {[%clk 0:02:25.5]} 25. Qf5
{[%clk 0:02:48.3]} 25... g4 {[%clk 0:02:25.4]} 26. hxg4 {[%clk 0:02:23.7]} 26...
hxg4 {[%clk 0:02:25.9]} 27. g3 {[%clk 0:02:12.1]} 27... Nh3+ {[%clk 0:02:24.2]}
28. Kg2 {[%clk 0:02:13.2]} 28... Nxf2 {[%clk 0:02:24.7]} 29. Ne4 {[%clk
0:02:07.1]} 29... Nxe4 {[%clk 0:02:18.4]} 30. Rxe4 {[%clk 0:02:09]} 30... Kf8
{[%clk 0:02:11.4]} 31. Rh1 {[%clk 0:01:56.9]} 31... Ke8 {[%clk 0:01:58.7]} 32.
Rxg4 {[%clk 0:01:54.9]} 32... Qf8 {[%clk 0:01:59.5]} 33. Qh7 {[%clk 0:01:49.6]}
33... Kd7 {[%clk 0:01:55.6]} 34. Rf1 {[%clk 0:01:37.9]} 34... Kc8 {[%clk
0:01:45.6]} 35. Qxf7 {[%clk 0:01:37.8]} 35... Qh6 {[%clk 0:01:46]} 36. Rh4
{[%clk 0:01:29.8]} 36... Rd2+ {[%clk 0:01:46.9]} 37. Kh1 {[%clk 0:01:30.6]} 1-0

[Event "*** Titled Tuesday Blitz"]
[Site "Chess.com"]
[Date "2019.09.03"]
[Round "3"]
[White "Last7Samurai"]
[Black "bugsbunny444"]
[Result "1-0"]
[WhiteElo "2781"]
[BlackElo "2553"]
[TimeControl "180+2"]
[EndTime "15:36:54 PDT"]
[Termination "Last7Samurai won on time"]

1. d4 {[%clk 0:03:01.9]} 1... e6 {[%clk 0:03:00.9]} 2. e4 {[%clk 0:03:01.8]}
2... d5 {[%clk 0:03:01.5]} 3. Nd2 {[%clk 0:03:02.4]} 3... Nf6 {[%clk 0:03:02.4]}
4. e5 {[%clk 0:03:03.2]} 4... Nfd7 {[%clk 0:03:04]} 5. Bd3 {[%clk 0:03:04.8]}
5... c5 {[%clk 0:03:05.6]} 6. c3 {[%clk 0:03:06.5]} 6... Nc6 {[%clk 0:03:07.2]}
7. Ne2 {[%clk 0:03:07.9]} 7... cxd4 {[%clk 0:03:08.5]} 8. cxd4 {[%clk
0:03:09.8]} 8... f6 {[%clk 0:03:10]} 9. exf6 {[%clk 0:03:11.7]} 9... Nxf6 {[%clk
0:03:11.4]} 10. Nf3 {[%clk 0:03:13.6]} 10... Bd6 {[%clk 0:03:12.9]} 11. O-O
{[%clk 0:03:15.5]} 11... O-O {[%clk 0:03:14.3]} 12. Bf4 {[%clk 0:03:17.1]} 12...
Bxf4 {[%clk 0:03:15.7]} 13. Nxf4 {[%clk 0:03:19]} 13... Qd6 {[%clk 0:03:17.1]}
14. Qc1 {[%clk 0:03:08.3]} 14... Bd7 {[%clk 0:03:17.9]} 15. Ne2 {[%clk
0:02:58.7]} 15... Rac8 {[%clk 0:03:06.2]} 16. Qd2 {[%clk 0:02:50.9]} 16... Ng4
{[%clk 0:03:05.7]} 17. Ng3 {[%clk 0:02:48.7]} 17... Rxf3 {[%clk 0:03:00.9]} 18.
gxf3 {[%clk 0:02:47.4]} 18... Nxd4 {[%clk 0:03:02.1]} 19. Bxh7+ {[%clk
0:02:48.1]} 19... Kxh7 {[%clk 0:02:55.7]} 20. Qxd4 {[%clk 0:02:50]} 20... Nf6
{[%clk 0:02:27.4]} 21. Rad1 {[%clk 0:02:43.7]} 21... e5 {[%clk 0:02:11.4]} 22.
Qd3+ {[%clk 0:02:43.8]} 22... g6 {[%clk 0:02:05.1]} 23. Ne4 {[%clk 0:02:42.7]}
23... Qe7 {[%clk 0:01:24.9]} 24. Nxf6+ {[%clk 0:02:26.5]} 24... Qxf6 {[%clk
0:01:26]} 25. Rfe1 {[%clk 0:02:04.8]} 25... Bc6 {[%clk 0:00:55.6]} 26. f4 {[%clk
0:01:25.7]} 26... exf4 {[%clk 0:00:13.1]} 27. Qh3+ {[%clk 0:01:11.2]} 27... Kg7
{[%clk 0:00:14.3]} 28. Qxc8 {[%clk 0:01:12.7]} 28... Qg5+ {[%clk 0:00:15.1]} 29.
Kf1 {[%clk 0:01:13.9]} 29... Bb5+ {[%clk 0:00:12.8]} 30. Re2 {[%clk 0:01:15]}
30... Qe7 {[%clk 0:00:02.7]} 31. Qc3+ {[%clk 0:01:12.6]} 31... Kh6 {[%clk
0:00:02.9]} 32. Qf3 {[%clk 0:01:11.6]} 1-0

[Event "*** Titled Tuesday Blitz"]
[Site "Chess.com"]
[Date "2019.09.03"]
[Round "3"]
[White "Komissarov_alex"]
[Black "filali-marouan"]
[Result "0-1"]
[WhiteElo "2102"]
[BlackElo "2348"]
[TimeControl "180+2"]
[EndTime "15:36:57 PDT"]
[Termination "filali-marouan won by resignation"]

1. d4 {[%clk 0:03:01.9]} 1... c6 {[%clk 0:02:58.2]} 2. e4 {[%clk 0:02:59.7]}
2... d5 {[%clk 0:03:00.1]} 3. Nd2 {[%clk 0:02:57]} 3... dxe4 {[%clk 0:02:54.1]}
4. Nxe4 {[%clk 0:02:57.5]} 4... Nf6 {[%clk 0:02:56]} 5. Nxf6+ {[%clk 0:02:57]}
5... exf6 {[%clk 0:02:57.9]} 6. Bc4 {[%clk 0:02:53.4]} 6... Be7 {[%clk
0:02:54.9]} 7. Be3 {[%clk 0:02:49.4]} 7... O-O {[%clk 0:02:56.4]} 8. Ne2 {[%clk
0:02:45.9]} 8... Bf5 {[%clk 0:02:54.9]} 9. Nf4 {[%clk 0:02:41.1]} 9... Na6
{[%clk 0:02:49.6]} 10. c3 {[%clk 0:02:22.2]} 10... Nc7 {[%clk 0:02:38.8]} 11.
Qh5 {[%clk 0:02:16.2]} 11... Qd7 {[%clk 0:02:33.8]} 12. h3 {[%clk 0:02:12.2]}
12... Nd5 {[%clk 0:02:29.3]} 13. Nxd5 {[%clk 0:01:47.9]} 13... cxd5 {[%clk
0:02:26.9]} 14. Be2 {[%clk 0:01:47.1]} 14... Rfe8 {[%clk 0:02:22.7]} 15. Bg4
{[%clk 0:01:40.8]} 15... Bxg4 {[%clk 0:01:38.2]} 16. hxg4 {[%clk 0:01:40.8]}
16... h6 {[%clk 0:01:39.6]} 17. O-O-O {[%clk 0:01:41.2]} 17... Bf8 {[%clk
0:01:36.4]} 18. Qf5 {[%clk 0:01:33.5]} 18... Re6 {[%clk 0:01:32.9]} 19. Rh3
{[%clk 0:01:24.7]} 19... Qa4 {[%clk 0:01:31.1]} 20. Qxd5 {[%clk 0:01:13.9]}
20... Ra6 {[%clk 0:01:24.7]} 21. a3 {[%clk 0:01:06.1]} 21... Rc8 {[%clk
0:01:01.2]} 22. Bd2 {[%clk 0:00:55]} 22... Ra5 {[%clk 0:00:56.3]} 23. Qxb7
{[%clk 0:00:51.9]} 23... Rc6 {[%clk 0:00:52.2]} 24. Qb6 {[%clk 0:00:24.6]} 24...
Rxb6 {[%clk 0:00:49.9]} 0-1

[Event "*** Titled Tuesday Blitz"]
[Site "Chess.com"]
[Date "2019.09.03"]
[Round "3"]
[White "HrvojeZagreb"]
[Black "NemtsevIgor"]
[Result "1-0"]
[WhiteElo "2079"]
[BlackElo "2316"]
[TimeControl "180+2"]
[EndTime "15:37:07 PDT"]
[Termination "HrvojeZagreb won by resignation"]

1. d4 {[%clk 0:03:01.9]} 1... c6 {[%clk 0:02:59.8]} 2. Bf4 {[%clk 0:03:01.7]}
2... d6 {[%clk 0:02:58.9]} 3. Nc3 {[%clk 0:03:01]} 3... h6 {[%clk 0:02:59]} 4.
e4 {[%clk 0:03:01.4]} 4... g5 {[%clk 0:03:00]} 5. Be3 {[%clk 0:03:01.1]} 5...
Bg7 {[%clk 0:03:01.2]} 6. Qd2 {[%clk 0:03:01.3]} 6... Nd7 {[%clk 0:03:01.6]} 7.
f3 {[%clk 0:02:58.5]} 7... Qa5 {[%clk 0:03:02.2]} 8. O-O-O {[%clk 0:02:58]} 8...
b5 {[%clk 0:03:02.5]} 9. a3 {[%clk 0:02:56.7]} 9... Rb8 {[%clk 0:03:02]} 10. h4
{[%clk 0:02:25.9]} 10... gxh4 {[%clk 0:02:49.6]} 11. Rxh4 {[%clk 0:02:23.6]}
11... Nb6 {[%clk 0:02:46.3]} 12. e5 {[%clk 0:02:18.4]} 12... Nc4 {[%clk
0:02:34.3]} 13. Bxc4 {[%clk 0:02:16.4]} 13... bxc4 {[%clk 0:02:35.4]} 14. exd6
{[%clk 0:01:27.6]} 14... exd6 {[%clk 0:02:34]} 15. d5 {[%clk 0:01:12.6]} 15...
c5 {[%clk 0:02:29.3]} 16. Re1 {[%clk 0:01:05.7]} 16... Kf8 {[%clk 0:02:13.2]}
17. Bf4 {[%clk 0:01:02.4]} 17... Bxc3 {[%clk 0:02:03.7]} 18. Bxd6+ {[%clk
0:00:57.8]} 18... Kg7 {[%clk 0:02:04.9]} 19. Be5+ {[%clk 0:00:49.7]} 19... f6
{[%clk 0:01:51.7]} 20. Bxc3 {[%clk 0:00:50.1]} 20... Qb6 {[%clk 0:01:50.7]} 21.
Qf4 {[%clk 0:00:37.8]} 21... Bd7 {[%clk 0:01:38.4]} 22. Nh3 {[%clk 0:00:22.4]}
22... h5 {[%clk 0:01:35.9]} 23. Ng5 {[%clk 0:00:21.7]} 23... Rh6 {[%clk
0:01:35.7]} 24. Ne6+ {[%clk 0:00:21.7]} 24... Bxe6 {[%clk 0:01:36.6]} 25. Rxe6
{[%clk 0:00:22.1]} 25... Qd8 {[%clk 0:01:36.4]} 26. d6 {[%clk 0:00:21.8]} 26...
Kf7 {[%clk 0:01:24.3]} 27. Re7+ {[%clk 0:00:21.6]} 27... Nxe7 {[%clk 0:01:24.5]}
28. dxe7 {[%clk 0:00:23.5]} 28... Qxe7 {[%clk 0:01:25.5]} 29. Qxh6 {[%clk
0:00:23.2]} 29... Qe2 {[%clk 0:01:16.4]} 30. Qxh5+ {[%clk 0:00:23.4]} 30... Kf8
{[%clk 0:01:08.9]} 31. Re4 {[%clk 0:00:22.3]} 31... Qf1+ {[%clk 0:01:08.8]} 32.
Re1 {[%clk 0:00:23.1]} 32... Qxg2 {[%clk 0:01:09.5]} 33. Qh8+ {[%clk 0:00:23.4]}
33... Qg8 {[%clk 0:01:07.9]} 34. Qxf6+ {[%clk 0:00:24.4]} 34... Qf7 {[%clk
0:01:09.3]} 35. Qd6+ {[%clk 0:00:25.6]} 35... Kg8 {[%clk 0:01:08.5]} 36. Qxb8+
{[%clk 0:00:26.2]} 36... Kh7 {[%clk 0:01:10.2]} 37. Rg1 {[%clk 0:00:23.7]} 37...
Qf4+ {[%clk 0:01:09.3]} 38. Qxf4 {[%clk 0:00:23.1]} 1-0

[Event "*** Titled Tuesday Blitz"]
[Site "Chess.com"]
[Date "2019.09.03"]
[Round "3"]
[White "Al_Shima"]
[Black "ALEXJR20"]
[Result "0-1"]
[WhiteElo "2477"]
[BlackElo "2219"]
[TimeControl "180+2"]
[EndTime "15:37:08 PDT"]
[Termination "ALEXJR20 won by checkmate"]

1. b3 {[%clk 0:03:01.9]} 1... d5 {[%clk 0:02:58.5]} 2. Bb2 {[%clk 0:03:02.9]}
2... e6 {[%clk 0:02:59.8]} 3. e3 {[%clk 0:03:04.1]} 3... Nf6 {[%clk 0:03:01.4]}
4. f4 {[%clk 0:03:05.3]} 4... c5 {[%clk 0:03:01.3]} 5. Nf3 {[%clk 0:03:06.6]}
5... Nc6 {[%clk 0:03:02.2]} 6. Bb5 {[%clk 0:03:06.7]} 6... Be7 {[%clk
0:03:02.9]} 7. O-O {[%clk 0:03:06.6]} 7... Bd7 {[%clk 0:03:04]} 8. Bxc6 {[%clk
0:03:06.5]} 8... Bxc6 {[%clk 0:03:04.8]} 9. Ne5 {[%clk 0:03:07.8]} 9... Nd7
{[%clk 0:02:57.3]} 10. Nxc6 {[%clk 0:03:07.6]} 10... bxc6 {[%clk 0:02:57.9]} 11.
Bxg7 {[%clk 0:03:09.1]} 11... Rg8 {[%clk 0:02:58.2]} 12. Bb2 {[%clk 0:03:10.6]}
12... Bf6 {[%clk 0:02:55.3]} 13. Bxf6 {[%clk 0:03:08]} 13... Qxf6 {[%clk
0:02:57.2]} 14. Nc3 {[%clk 0:03:09.2]} 14... O-O-O {[%clk 0:02:54.5]} 15. Qh5
{[%clk 0:03:06.7]} 15... Rg7 {[%clk 0:02:41.8]} 16. Rae1 {[%clk 0:03:02.1]}
16... Rdg8 {[%clk 0:02:42.8]} 17. Rf2 {[%clk 0:03:01.8]} 17... Qe7 {[%clk
0:02:20.5]} 18. e4 {[%clk 0:03:00.4]} 18... Nf6 {[%clk 0:02:20.6]} 19. Qf3
{[%clk 0:02:57.2]} 19... Ng4 {[%clk 0:02:12.5]} 20. Rfe2 {[%clk 0:02:57.8]}
20... Qh4 {[%clk 0:02:12.3]} 21. h3 {[%clk 0:02:40.7]} 21... Nf6 {[%clk
0:02:07.9]} 22. exd5 {[%clk 0:02:33.3]} 22... cxd5 {[%clk 0:01:55.9]} 23. f5
{[%clk 0:02:30.6]} 23... Rg3 {[%clk 0:01:49.5]} 24. Qf2 {[%clk 0:02:19.8]} 24...
d4 {[%clk 0:01:39.7]} 25. Na4 {[%clk 0:01:16.4]} 25... Qxh3 {[%clk 0:01:02.4]}
26. fxe6 {[%clk 0:00:22.3]} 26... Ng4 {[%clk 0:01:01.5]} 27. exf7 {[%clk
0:00:20.7]} 27... Qh2+ {[%clk 0:00:45.5]} 28. Kf1 {[%clk 0:00:21.5]} 28... Qh1+
{[%clk 0:00:46.7]} 29. Qg1 {[%clk 0:00:22.4]} 29... Nh2+ {[%clk 0:00:48.2]} 30.
Kf2 {[%clk 0:00:23.5]} 30... Rxg2+ {[%clk 0:00:42.8]} 31. Qxg2 {[%clk
0:00:17.5]} 31... Qxg2# {[%clk 0:00:41.4]} 0-1